[Event "Early Titled Tuesday Blitz | February 8 2022"]
[White "Kornyukov, Alexey"]
[Black "Iljushina, Olga"]
[WhiteFideId "4150457"]
[BlackFideId "4152280"]
[WhiteElo "2303"]
[BlackElo "1937"]
[Result "0-1"]
[Round "09"]
[TimeControl "180+1"]
[Date "2022.02.08"]
[WhiteClock "0:01:22"]
[BlackClock "0:01:24"]

1. e4 {[%clk 0:02:56]}  c5 {[%clk 0:02:59]} 2. c3 {[%clk 0:02:55]}  Nf6 {[%clk 0:02:56]} 3. e5 {[%clk 0:02:54]}  Nd5 {[%clk 0:02:56]} 4. d4 {[%clk 0:02:53]}  cxd4 {[%clk 0:02:56]} 5. cxd4 {[%clk 0:02:53]}  d6 {[%clk 0:02:57]} 6. Nf3 {[%clk 0:02:52]}  dxe5 {[%clk 0:02:56]} 7. dxe5 {[%clk 0:02:52]}  e6 {[%clk 0:02:53]} 8. Bc4 {[%clk 0:02:49]}  Bb4+ {[%clk 0:02:48]} 9. Bd2 {[%clk 0:02:48]}  Nc6 {[%clk 0:02:42]} 10. Bxb4 {[%clk 0:02:46]}  Ndxb4 {[%clk 0:02:39]} 11. Qxd8+ {[%clk 0:02:42]}  Nxd8 {[%clk 0:02:39]} 12. Na3 {[%clk 0:02:41]}  O-O {[%clk 0:02:35]} 13. O-O {[%clk 0:02:39]}  Ndc6 {[%clk 0:02:30]} 14. Nb5 {[%clk 0:02:35]}  a6 {[%clk 0:02:24]} 15. Nd6 {[%clk 0:02:35]}  b5 {[%clk 0:02:23]} 16. Be2 {[%clk 0:02:30]}  Rd8 {[%clk 0:02:20]} 17. a3 {[%clk 0:02:29]}  Nd5 {[%clk 0:02:13]} 18. Nxc8 {[%clk 0:02:17]}  Raxc8 {[%clk 0:02:12]} 19. Rac1 {[%clk 0:02:17]}  Na5 {[%clk 0:02:08]} 20. b4 {[%clk 0:02:13]}  Nc4 {[%clk 0:01:57]} 21. Bxc4 {[%clk 0:02:12]}  bxc4 {[%clk 0:01:57]} 22. Nd4 {[%clk 0:02:12]}  c3 {[%clk 0:01:56]} 23. Rfd1 {[%clk 0:02:08]}  Rc4 {[%clk 0:01:50]} 24. b5 {[%clk 0:02:05]}  axb5 {[%clk 0:01:48]} 25. Nxb5 {[%clk 0:02:05]}  Ra8 {[%clk 0:01:44]} 26. Rd3 {[%clk 0:01:56]}  h6 {[%clk 0:01:36]} 27. Nxc3 {[%clk 0:01:50]}  Rxa3 {[%clk 0:01:28]} 28. Rxd5 {[%clk 0:01:24]}  exd5 {[%clk 0:01:26]} 29. Ne2 {[%clk 0:01:23]}  Rxc1+ {[%clk 0:01:24]} 30. Nxc1 {[%clk 0:01:22]}  Ra1 {[%clk 0:01:24]} 0-1


[Site "https://www.chess.com"]

[Event "Early Titled Tuesday Blitz | February 8 2022"]
[White "Kouskoutis, Georgios-Alexandros"]
[Black "Rodchenkov, Sergey D."]
[WhiteFideId "4234049"]
[BlackFideId "4168712"]
[WhiteElo "2130"]
[BlackElo "2306"]
[Result "1-0"]
[Round "09"]
[TimeControl "180+1"]
[Date "2022.02.08"]
[WhiteClock "0:00:12"]
[BlackClock "0:00:16"]

1. c4 {[%clk 0:03:00]}  e5 {[%clk 0:02:59]} 2. g3 {[%clk 0:03:00]}  Nf6 {[%clk 0:02:59]} 3. Bg2 {[%clk 0:03:01]}  c6 {[%clk 0:02:59]} 4. Nf3 {[%clk 0:03:01]}  e4 {[%clk 0:03:00]} 5. Nd4 {[%clk 0:03:01]}  Qb6 {[%clk 0:03:00]} 6. Nc2 {[%clk 0:02:59]}  d5 {[%clk 0:02:59]} 7. cxd5 {[%clk 0:02:59]}  cxd5 {[%clk 0:02:58]} 8. Nc3 {[%clk 0:02:59]}  Nc6 {[%clk 0:02:50]} 9. d3 {[%clk 0:02:45]}  Be7 {[%clk 0:01:48]} 10. O-O {[%clk 0:02:40]}  O-O {[%clk 0:01:42]} 11. Bg5 {[%clk 0:02:06]}  Bf5 {[%clk 0:01:07]} 12. Ne3 {[%clk 0:01:25]}  Qxb2 {[%clk 0:00:57]} 13. Nxf5 {[%clk 0:01:05]}  Qxc3 {[%clk 0:00:55]} 14. Rc1 {[%clk 0:00:49]}  Qe5 {[%clk 0:00:51]} 15. Nxe7+ {[%clk 0:00:48]}  Qxe7 {[%clk 0:00:50]} 16. dxe4 {[%clk 0:00:43]}  dxe4 {[%clk 0:00:48]} 17. Qb3 {[%clk 0:00:43]}  Rfe8 {[%clk 0:00:40]} 18. Rfd1 {[%clk 0:00:31]}  h6 {[%clk 0:00:39]} 19. Bxf6 {[%clk 0:00:30]}  Qxf6 {[%clk 0:00:40]} 20. Qxb7 {[%clk 0:00:28]}  Nd4 {[%clk 0:00:36]} 21. Rd2 {[%clk 0:00:17]}  Rad8 {[%clk 0:00:37]} 22. Qb2 {[%clk 0:00:12]}  Qg5 {[%clk 0:00:21]} 23. e3 {[%clk 0:00:09]}  Nf3+ {[%clk 0:00:19]} 24. Bxf3 {[%clk 0:00:09]}  exf3 {[%clk 0:00:20]} 25. Rcd1 {[%clk 0:00:06]}  Rxd2 {[%clk 0:00:16]} 26. Qxd2 {[%clk 0:00:07]}  Qg4 {[%clk 0:00:16]} 27. Qd7 {[%clk 0:00:05]}  Re6 {[%clk 0:00:12]} 28. Qc8+ {[%clk 0:00:03]}  Kh7 {[%clk 0:00:12]} 29. Qc2+ {[%clk 0:00:02]}  Rg6 {[%clk 0:00:08]} 30. Qd3 {[%clk 0:00:01]}  h5 {[%clk 0:00:06]} 31. Qf1 {[%clk 0:00:02]}  Rb6 {[%clk 0:00:04]} 32. Rd4 {[%clk 0:00:02]}  Qg5 {[%clk 0:00:02]} 33. h3 {[%clk 0:00:02]}  Qe5 {[%clk 0:00:02]} 34. Kh2 {[%clk 0:00:01]}  Rb2 {[%clk 0:00:03]} 35. Rf4 {[%clk 0:00:01]}  g5 {[%clk 0:00:03]} 36. Rxf3 {[%clk 0:00:01]}  Kg6 {[%clk 0:00:04]} 37. Qd1 {[%clk 0:00:01]}  h4 {[%clk 0:00:04]} 38. Kg2 {[%clk 0:00:01]}  hxg3 {[%clk 0:00:05]} 39. Rxg3 {[%clk 0:00:02]}  f5 {[%clk 0:00:05]} 40. Qf3 {[%clk 0:00:02]}  Qe4 {[%clk 0:00:06]} 41. Qxe4 {[%clk 0:00:02]}  fxe4 {[%clk 0:00:07]} 42. Rg4 {[%clk 0:00:03]}  Rxa2 {[%clk 0:00:08]} 43. Rxe4 {[%clk 0:00:03]}  Ra6 {[%clk 0:00:08]} 44. Rc4 {[%clk 0:00:03]}  Rc6 {[%clk 0:00:08]} 45. Rxc6+ {[%clk 0:00:03]}  Kf5 {[%clk 0:00:09]} 46. Ra6 {[%clk 0:00:04]}  Ke5 {[%clk 0:00:09]} 47. Rxa7 {[%clk 0:00:04]}  Kf6 {[%clk 0:00:10]} 48. Ra5 {[%clk 0:00:05]}  Kg6 {[%clk 0:00:11]} 49. Kg3 {[%clk 0:00:06]}  Kh5 {[%clk 0:00:12]} 50. Rb5 {[%clk 0:00:06]}  Kg6 {[%clk 0:00:10]} 51. Kg4 {[%clk 0:00:07]}  Kf6 {[%clk 0:00:11]} 52. Rxg5 {[%clk 0:00:07]}  Ke6 {[%clk 0:00:12]} 53. h4 {[%clk 0:00:08]}  Kd6 {[%clk 0:00:13]} 54. h5 {[%clk 0:00:09]}  Kc6 {[%clk 0:00:14]} 55. h6 {[%clk 0:00:10]}  Kd7 {[%clk 0:00:15]} 56. h7 {[%clk 0:00:11]}  Kc7 {[%clk 0:00:16]} 57. h8=Q {[%clk 0:00:12]} 1-0


[Site "https://www.chess.com"]

[Event "Early Titled Tuesday Blitz | February 8 2022"]
[White "Lagunov, Evgenij"]
[Black "Aaditya Dhingra"]
[WhiteFideId "4125363"]
[BlackFideId "25678191"]
[WhiteElo "2200"]
[BlackElo "1789"]
[Result "1-0"]
[Round "09"]
[TimeControl "180+1"]
[Date "2022.02.08"]
[WhiteClock "0:00:33"]
[BlackClock "0:00:04"]

1. e4 {[%clk 0:03:00]}  e5 {[%clk 0:02:59]} 2. Nf3 {[%clk 0:03:00]}  Nc6 {[%clk 0:02:59]} 3. Bb5 {[%clk 0:02:59]}  Nge7 {[%clk 0:02:52]} 4. d4 {[%clk 0:02:56]}  exd4 {[%clk 0:02:51]} 5. Nxd4 {[%clk 0:02:56]}  g6 {[%clk 0:02:48]} 6. Nc3 {[%clk 0:02:50]}  Bg7 {[%clk 0:02:46]} 7. Be3 {[%clk 0:02:50]}  a6 {[%clk 0:02:41]} 8. Bc4 {[%clk 0:02:45]}  b5 {[%clk 0:02:35]} 9. Bb3 {[%clk 0:02:40]}  O-O {[%clk 0:02:33]} 10. Qd2 {[%clk 0:02:38]}  Bb7 {[%clk 0:02:22]} 11. h4 {[%clk 0:02:34]}  b4 {[%clk 0:02:01]} 12. Nd5 {[%clk 0:02:29]}  Nxd4 {[%clk 0:01:48]} 13. Bxd4 {[%clk 0:02:20]}  Nxd5 {[%clk 0:01:45]} 14. Bxg7 {[%clk 0:02:09]}  Kxg7 {[%clk 0:01:25]} 15. Bxd5 {[%clk 0:02:07]}  Bxd5 {[%clk 0:01:24]} 16. Qxd5 {[%clk 0:02:06]}  Qf6 {[%clk 0:01:19]} 17. O-O-O {[%clk 0:02:06]}  d6 {[%clk 0:01:07]} 18. h5 {[%clk 0:02:03]}  Rab8 {[%clk 0:00:54]} 19. f3 {[%clk 0:01:51]}  Rb5 {[%clk 0:00:52]} 20. h6+ {[%clk 0:01:51]}  Kg8 {[%clk 0:00:50]} 21. Qd3 {[%clk 0:01:51]}  Rfb8 {[%clk 0:00:44]} 22. Kb1 {[%clk 0:01:51]}  a5 {[%clk 0:00:43]} 23. g3 {[%clk 0:01:37]}  b3 {[%clk 0:00:41]} 24. cxb3 {[%clk 0:01:30]}  a4 {[%clk 0:00:40]} 25. f4 {[%clk 0:01:28]}  axb3 {[%clk 0:00:29]} 26. a3 {[%clk 0:01:28]}  Ra5 {[%clk 0:00:16]} 27. Rc1 {[%clk 0:01:12]}  c5 {[%clk 0:00:15]} 28. Rcd1 {[%clk 0:01:09]}  Qe7 {[%clk 0:00:10]} 29. Rhe1 {[%clk 0:01:04]}  Rd8 {[%clk 0:00:06]} 30. Qc4 {[%clk 0:00:58]}  Raa8 {[%clk 0:00:06]} 31. Qxb3 {[%clk 0:00:48]}  Rab8 {[%clk 0:00:04]} 32. Qc3 {[%clk 0:00:48]}  Qf8 {[%clk 0:00:04]} 33. Rh1 {[%clk 0:00:46]}  d5 {[%clk 0:00:04]} 34. exd5 {[%clk 0:00:45]}  c4 {[%clk 0:00:04]} 35. d6 {[%clk 0:00:38]}  Rb4 {[%clk 0:00:04]} 36. Qxb4 {[%clk 0:00:33]} 1-0


[Site "https://www.chess.com"]

[Event "Early Titled Tuesday Blitz | February 8 2022"]
[White "Lashkin, Jegor"]
[Black "Szpar, Milosz"]
[WhiteFideId "13907808"]
[BlackFideId "1184989"]
[WhiteElo "2344"]
[BlackElo "2447"]
[Result "0-1"]
[Round "09"]
[TimeControl "180+1"]
[Date "2022.02.08"]
[WhiteClock "0:00:02"]
[BlackClock "0:00:37"]

1. d4 {[%clk 0:03:00]}  d5 {[%clk 0:02:58]} 2. c4 {[%clk 0:03:01]}  dxc4 {[%clk 0:02:57]} 3. Nf3 {[%clk 0:03:00]}  Nf6 {[%clk 0:02:57]} 4. e3 {[%clk 0:03:01]}  Bg4 {[%clk 0:02:56]} 5. Bxc4 {[%clk 0:03:01]}  e6 {[%clk 0:02:56]} 6. h3 {[%clk 0:03:02]}  Bh5 {[%clk 0:02:52]} 7. O-O {[%clk 0:03:02]}  c6 {[%clk 0:02:49]} 8. Nc3 {[%clk 0:03:02]}  Nbd7 {[%clk 0:02:49]} 9. e4 {[%clk 0:03:02]}  Be7 {[%clk 0:02:48]} 10. Be3 {[%clk 0:03:02]}  O-O {[%clk 0:02:48]} 11. Be2 {[%clk 0:03:00]}  Qc7 {[%clk 0:02:40]} 12. Rc1 {[%clk 0:02:56]}  Rad8 {[%clk 0:02:26]} 13. Qc2 {[%clk 0:02:48]}  Qb8 {[%clk 0:02:23]} 14. Rfd1 {[%clk 0:02:47]}  Rfe8 {[%clk 0:02:11]} 15. a3 {[%clk 0:02:34]}  h6 {[%clk 0:02:11]} 16. b4 {[%clk 0:02:32]}  Bg6 {[%clk 0:02:09]} 17. Bd3 {[%clk 0:02:21]}  a6 {[%clk 0:01:53]} 18. Qb3 {[%clk 0:01:43]}  Bf8 {[%clk 0:01:47]} 19. Bb1 {[%clk 0:01:31]}  Bh7 {[%clk 0:01:35]} 20. a4 {[%clk 0:01:06]}  b5 {[%clk 0:01:31]} 21. a5 {[%clk 0:01:03]}  Qb7 {[%clk 0:01:23]} 22. e5 {[%clk 0:00:52]}  Bxb1 {[%clk 0:00:58]} 23. exf6 {[%clk 0:00:43]}  Bh7 {[%clk 0:00:58]} 24. fxg7 {[%clk 0:00:43]}  Bxg7 {[%clk 0:00:59]} 25. Qb2 {[%clk 0:00:38]}  e5 {[%clk 0:00:53]} 26. d5 {[%clk 0:00:24]}  cxd5 {[%clk 0:00:53]} 27. Rxd5 {[%clk 0:00:16]}  Be4 {[%clk 0:00:53]} 28. Rdd1 {[%clk 0:00:10]}  Bxf3 {[%clk 0:00:52]} 29. gxf3 {[%clk 0:00:11]}  Qxf3 {[%clk 0:00:53]} 30. Qe2 {[%clk 0:00:08]}  Qxh3 {[%clk 0:00:52]} 31. Ne4 {[%clk 0:00:08]}  Nf6 {[%clk 0:00:48]} 32. Nxf6+ {[%clk 0:00:05]}  Bxf6 {[%clk 0:00:49]} 33. Qf1 {[%clk 0:00:04]}  Qf5 {[%clk 0:00:41]} 34. Kh1 {[%clk 0:00:01]}  Kh7 {[%clk 0:00:39]} 35. Qg2 {[%clk 0:00:02]}  Rg8 {[%clk 0:00:38]} 36. Qc6 {[%clk 0:00:02]}  Qh3# {[%clk 0:00:37]} 0-1


[Site "https://www.chess.com"]

[Event "Early Titled Tuesday Blitz | February 8 2022"]
[White "Lazavik, Denis"]
[Black "Sharavdorj, Dashzegve"]
[WhiteFideId "13515110"]
[BlackFideId "4900340"]
[WhiteElo "2436"]
[BlackElo "2366"]
[Result "1-0"]
[Round "09"]
[TimeControl "180+1"]
[Date "2022.02.08"]
[WhiteClock "0:00:14"]
[BlackClock "0:00:48"]

1. d4 {[%clk 0:03:00]}  Nf6 {[%clk 0:02:59]} 2. c4 {[%clk 0:03:01]}  g6 {[%clk 0:02:59]} 3. g3 {[%clk 0:03:00]}  Bg7 {[%clk 0:02:58]} 4. Bg2 {[%clk 0:03:00]}  O-O {[%clk 0:02:59]} 5. Nc3 {[%clk 0:03:01]}  d6 {[%clk 0:02:59]} 6. Nf3 {[%clk 0:03:01]}  c6 {[%clk 0:03:00]} 7. O-O {[%clk 0:03:02]}  Qa5 {[%clk 0:03:00]} 8. e4 {[%clk 0:03:02]}  Bg4 {[%clk 0:02:59]} 9. h3 {[%clk 0:02:57]}  Bxf3 {[%clk 0:02:59]} 10. Qxf3 {[%clk 0:02:55]}  Nfd7 {[%clk 0:02:58]} 11. Rd1 {[%clk 0:02:51]}  Qb4 {[%clk 0:02:54]} 12. b3 {[%clk 0:02:40]}  e5 {[%clk 0:02:42]} 13. d5 {[%clk 0:02:39]}  c5 {[%clk 0:02:32]} 14. a3 {[%clk 0:02:31]}  Qb6 {[%clk 0:02:28]} 15. Rb1 {[%clk 0:02:11]}  Na6 {[%clk 0:02:27]} 16. Be3 {[%clk 0:02:06]}  Qd8 {[%clk 0:02:26]} 17. b4 {[%clk 0:02:01]}  f5 {[%clk 0:02:24]} 18. Nb5 {[%clk 0:02:00]}  f4 {[%clk 0:02:22]} 19. Bd2 {[%clk 0:01:51]}  fxg3 {[%clk 0:02:21]} 20. Qxg3 {[%clk 0:01:52]}  Nf6 {[%clk 0:02:21]} 21. Bf3 {[%clk 0:01:52]}  b6 {[%clk 0:02:17]} 22. h4 {[%clk 0:01:44]}  Nc7 {[%clk 0:02:13]} 23. bxc5 {[%clk 0:01:44]}  Nxb5 {[%clk 0:02:13]} 24. Rxb5 {[%clk 0:01:42]}  dxc5 {[%clk 0:02:10]} 25. Kg2 {[%clk 0:01:30]}  Ne8 {[%clk 0:02:08]} 26. Rbb1 {[%clk 0:01:24]}  Nd6 {[%clk 0:02:08]} 27. Rbc1 {[%clk 0:01:24]}  Qf6 {[%clk 0:02:07]} 28. h5 {[%clk 0:00:54]}  Qf7 {[%clk 0:01:51]} 29. Rh1 {[%clk 0:00:49]}  Rab8 {[%clk 0:01:36]} 30. hxg6 {[%clk 0:00:46]}  Qxg6 {[%clk 0:01:34]} 31. Qxg6 {[%clk 0:00:46]}  hxg6 {[%clk 0:01:34]} 32. Bg4 {[%clk 0:00:47]}  Rf6 {[%clk 0:01:24]} 33. Bg5 {[%clk 0:00:44]}  Nxe4 {[%clk 0:01:20]} 34. Bxf6 {[%clk 0:00:44]}  Bxf6 {[%clk 0:01:20]} 35. Rh2 {[%clk 0:00:38]}  Ng5 {[%clk 0:01:15]} 36. d6 {[%clk 0:00:32]}  Rd8 {[%clk 0:01:15]} 37. d7 {[%clk 0:00:32]}  e4 {[%clk 0:01:15]} 38. Rh6 {[%clk 0:00:20]}  Kg7 {[%clk 0:01:14]} 39. Rch1 {[%clk 0:00:20]}  Kf7 {[%clk 0:01:13]} 40. Rd1 {[%clk 0:00:16]}  Bg7 {[%clk 0:01:12]} 41. Rh3 {[%clk 0:00:16]}  Bd4 {[%clk 0:01:12]} 42. a4 {[%clk 0:00:16]}  Kf6 {[%clk 0:01:10]} 43. Rb1 {[%clk 0:00:12]}  Ke5 {[%clk 0:01:10]} 44. a5 {[%clk 0:00:11]}  bxa5 {[%clk 0:01:10]} 45. Rb7 {[%clk 0:00:11]}  Kf4 {[%clk 0:01:09]} 46. Rg3 {[%clk 0:00:11]}  Nf7 {[%clk 0:01:08]} 47. Rxa7 {[%clk 0:00:12]}  Ne5 {[%clk 0:01:08]} 48. Bh3 {[%clk 0:00:12]}  g5 {[%clk 0:01:07]} 49. Be6 {[%clk 0:00:11]}  g4 {[%clk 0:01:06]} 50. Rc7 {[%clk 0:00:10]}  a4 {[%clk 0:01:05]} 51. Rc8 {[%clk 0:00:10]}  Rxd7 {[%clk 0:01:00]} 52. Rf8+ {[%clk 0:00:10]}  Kg5 {[%clk 0:00:59]} 53. Rf5+ {[%clk 0:00:10]}  Kg6 {[%clk 0:00:58]} 54. Bxd7 {[%clk 0:00:07]}  Nxd7 {[%clk 0:00:57]} 55. Rd5 {[%clk 0:00:08]}  Nf6 {[%clk 0:00:57]} 56. Rd6 {[%clk 0:00:08]}  Kf5 {[%clk 0:00:57]} 57. Ra6 {[%clk 0:00:09]}  Be5 {[%clk 0:00:56]} 58. Ra3 {[%clk 0:00:09]}  Nh5 {[%clk 0:00:56]} 59. R3xa4 {[%clk 0:00:09]}  Nf4+ {[%clk 0:00:56]} 60. Kf1 {[%clk 0:00:09]}  e3 {[%clk 0:00:54]} 61. fxe3 {[%clk 0:00:10]}  Nd3 {[%clk 0:00:54]} 62. Ra8 {[%clk 0:00:10]}  g3 {[%clk 0:00:54]} 63. Rg8 {[%clk 0:00:10]}  Ke4 {[%clk 0:00:54]} 64. Ke2 {[%clk 0:00:10]}  Nc1+ {[%clk 0:00:54]} 65. Kd2 {[%clk 0:00:10]}  Nb3+ {[%clk 0:00:53]} 66. Kc2 {[%clk 0:00:08]}  Na1+ {[%clk 0:00:52]} 67. Rxa1 {[%clk 0:00:08]}  Bxa1 {[%clk 0:00:51]} 68. Rxg3 {[%clk 0:00:09]}  Be5 {[%clk 0:00:51]} 69. Rg5 {[%clk 0:00:09]}  Bd6 {[%clk 0:00:50]} 70. Kd2 {[%clk 0:00:09]}  Bf8 {[%clk 0:00:50]} 71. Ke2 {[%clk 0:00:08]}  Bh6 {[%clk 0:00:49]} 72. Rg4+ {[%clk 0:00:09]}  Kf5 {[%clk 0:00:49]} 73. Kf3 {[%clk 0:00:08]}  Bxe3 {[%clk 0:00:48]} 74. Kxe3 {[%clk 0:00:09]}  Kxg4 {[%clk 0:00:48]} 75. Ke4 {[%clk 0:00:09]}  Kg5 {[%clk 0:00:48]} 76. Kd5 {[%clk 0:00:10]}  Kf6 {[%clk 0:00:49]} 77. Kxc5 {[%clk 0:00:11]}  Ke7 {[%clk 0:00:50]} 78. Kb6 {[%clk 0:00:12]}  Kd8 {[%clk 0:00:49]} 79. Kb7 {[%clk 0:00:12]}  Kd7 {[%clk 0:00:48]} 80. c5 {[%clk 0:00:13]}  Ke6 {[%clk 0:00:49]} 81. c6 {[%clk 0:00:13]}  Kd6 {[%clk 0:00:48]} 82. c7 {[%clk 0:00:14]} 1-0


[Site "https://www.chess.com"]

[Event "Early Titled Tuesday Blitz | February 8 2022"]
[White "Le Ruyet, Leopold"]
[Black "Baches Garcia, Guillermo"]
[WhiteFideId "645923"]
[BlackFideId "2209764"]
[WhiteElo "2276"]
[BlackElo "2456"]
[Result "1-0"]
[Round "09"]
[TimeControl "180+1"]
[Date "2022.02.08"]
[WhiteClock "0:00:50"]
[BlackClock "0:00:06"]

1. d4 {[%clk 0:03:00]}  Nf6 {[%clk 0:02:58]} 2. c4 {[%clk 0:03:01]}  e6 {[%clk 0:02:58]} 3. Nc3 {[%clk 0:03:00]}  d5 {[%clk 0:02:58]} 4. cxd5 {[%clk 0:02:59]}  Nxd5 {[%clk 0:02:59]} 5. Nf3 {[%clk 0:02:57]}  c5 {[%clk 0:02:59]} 6. e3 {[%clk 0:02:56]}  cxd4 {[%clk 0:02:58]} 7. exd4 {[%clk 0:02:56]}  Nxc3 {[%clk 0:02:58]} 8. bxc3 {[%clk 0:02:55]}  Qc7 {[%clk 0:02:58]} 9. c4 {[%clk 0:02:50]}  Bb4+ {[%clk 0:02:49]} 10. Bd2 {[%clk 0:02:50]}  Bxd2+ {[%clk 0:02:49]} 11. Qxd2 {[%clk 0:02:51]}  O-O {[%clk 0:02:41]} 12. Bd3 {[%clk 0:02:50]}  b6 {[%clk 0:02:30]} 13. O-O {[%clk 0:02:45]}  Bb7 {[%clk 0:02:30]} 14. Qe3 {[%clk 0:02:39]}  Bxf3 {[%clk 0:02:07]} 15. Qxf3 {[%clk 0:02:34]}  Nc6 {[%clk 0:02:07]} 16. Rad1 {[%clk 0:02:20]}  Rad8 {[%clk 0:01:56]} 17. Bb1 {[%clk 0:02:18]}  Nxd4 {[%clk 0:01:31]} 18. Qe4 {[%clk 0:02:18]}  f5 {[%clk 0:01:24]} 19. Qe3 {[%clk 0:02:02]}  Qxc4 {[%clk 0:01:18]} 20. Kh1 {[%clk 0:02:02]}  Qd5 {[%clk 0:00:55]} 21. Rfe1 {[%clk 0:01:54]}  Rfe8 {[%clk 0:00:51]} 22. Qg5 {[%clk 0:01:47]}  g6 {[%clk 0:00:39]} 23. h4 {[%clk 0:01:43]}  e5 {[%clk 0:00:35]} 24. Bxf5 {[%clk 0:01:39]}  Qxa2 {[%clk 0:00:17]} 25. Rxe5 {[%clk 0:01:16]}  Qxf2 {[%clk 0:00:11]} 26. Bxg6 {[%clk 0:01:05]}  Rxe5 {[%clk 0:00:11]} 27. Qxd8+ {[%clk 0:01:05]}  Kg7 {[%clk 0:00:09]} 28. Qc7+ {[%clk 0:00:50]}  Kf6 {[%clk 0:00:06]} 29. Qf7# {[%clk 0:00:50]} 1-0


[Site "https://www.chess.com"]

[Event "Early Titled Tuesday Blitz | February 8 2022"]
[White "Lodici, Lorenzo"]
[Black "Al-Tarboush, Ward"]
[WhiteFideId "884189"]
[BlackFideId "7601450"]
[WhiteElo "2265"]
[BlackElo "2276"]
[Result "1-0"]
[Round "09"]
[TimeControl "180+1"]
[Date "2022.02.08"]
[WhiteClock "0:00:31"]
[BlackClock "0:00:44"]

1. e4 {[%clk 0:02:57]}  e6 {[%clk 0:03:00]} 2. d4 {[%clk 0:02:55]}  d5 {[%clk 0:03:00]} 3. Nc3 {[%clk 0:02:54]}  Nf6 {[%clk 0:03:00]} 4. e5 {[%clk 0:02:54]}  Nfd7 {[%clk 0:03:00]} 5. f4 {[%clk 0:02:50]}  c5 {[%clk 0:03:00]} 6. Nf3 {[%clk 0:02:45]}  Nc6 {[%clk 0:03:00]} 7. Be3 {[%clk 0:02:45]}  a6 {[%clk 0:03:00]} 8. Qd2 {[%clk 0:02:45]}  b5 {[%clk 0:03:00]} 9. Nd1 {[%clk 0:02:43]}  cxd4 {[%clk 0:03:00]} 10. Nxd4 {[%clk 0:02:44]}  Nxd4 {[%clk 0:02:58]} 11. Bxd4 {[%clk 0:02:45]}  Bc5 {[%clk 0:02:58]} 12. c3 {[%clk 0:02:40]}  Bb7 {[%clk 0:02:58]} 13. Nf2 {[%clk 0:02:39]}  Qe7 {[%clk 0:02:58]} 14. Nd3 {[%clk 0:02:39]}  Ba7 {[%clk 0:02:53]} 15. Qe3 {[%clk 0:02:36]}  Bxd4 {[%clk 0:02:45]} 16. cxd4 {[%clk 0:02:35]}  O-O {[%clk 0:02:41]} 17. Be2 {[%clk 0:02:36]}  Nb6 {[%clk 0:02:39]} 18. Nc5 {[%clk 0:02:33]}  Nc4 {[%clk 0:02:37]} 19. Qc3 {[%clk 0:02:32]}  Rac8 {[%clk 0:02:36]} 20. b3 {[%clk 0:02:29]}  Nb6 {[%clk 0:02:34]} 21. Qe3 {[%clk 0:02:24]}  Rc7 {[%clk 0:02:23]} 22. O-O {[%clk 0:02:17]}  Nd7 {[%clk 0:02:24]} 23. Nd3 {[%clk 0:02:17]}  Rfc8 {[%clk 0:02:23]} 24. f5 {[%clk 0:02:08]}  exf5 {[%clk 0:02:24]} 25. Rxf5 {[%clk 0:02:07]}  Nf8 {[%clk 0:02:24]} 26. Raf1 {[%clk 0:02:07]}  Qa3 {[%clk 0:02:23]} 27. Nc5 {[%clk 0:01:48]}  Ne6 {[%clk 0:02:18]} 28. Nxe6 {[%clk 0:01:18]}  fxe6 {[%clk 0:02:18]} 29. Rg5 {[%clk 0:01:17]}  Qe7 {[%clk 0:02:18]} 30. Bg4 {[%clk 0:01:11]}  Bc6 {[%clk 0:02:10]} 31. h4 {[%clk 0:01:10]}  h6 {[%clk 0:02:09]} 32. Rg6 {[%clk 0:01:06]}  Kh7 {[%clk 0:02:05]} 33. Rxe6 {[%clk 0:01:05]}  Qxh4 {[%clk 0:02:05]} 34. Bf5+ {[%clk 0:01:02]}  Kh8 {[%clk 0:02:01]} 35. Rg6 {[%clk 0:00:58]}  Rf8 {[%clk 0:01:57]} 36. e6 {[%clk 0:00:57]}  Re7 {[%clk 0:01:56]} 37. Qe5 {[%clk 0:00:56]}  Be8 {[%clk 0:01:52]} 38. Rg4 {[%clk 0:00:53]}  Qf6 {[%clk 0:01:37]} 39. Qxd5 {[%clk 0:00:43]}  h5 {[%clk 0:01:37]} 40. Rg3 {[%clk 0:00:40]}  h4 {[%clk 0:01:36]} 41. Rg4 {[%clk 0:00:38]}  Bh5 {[%clk 0:01:36]} 42. Rgf4 {[%clk 0:00:38]}  Qg5 {[%clk 0:01:36]} 43. Qe4 {[%clk 0:00:36]}  g6 {[%clk 0:01:26]} 44. Bh3 {[%clk 0:00:35]}  Rxf4 {[%clk 0:01:24]} 45. Rxf4 {[%clk 0:00:35]}  Rc7 {[%clk 0:01:05]} 46. Qe3 {[%clk 0:00:34]}  Kg7 {[%clk 0:00:43]} 47. Rf7+ {[%clk 0:00:31]}  Kh6 {[%clk 0:00:43]} 48. Qxg5+ {[%clk 0:00:31]}  Kxg5 {[%clk 0:00:44]} 49. Rxc7 {[%clk 0:00:31]} 1-0


[Site "https://www.chess.com"]

[Event "Early Titled Tuesday Blitz | February 8 2022"]
[White "Lucas, Arthur"]
[Black "Saravana, Krishnan P."]
[WhiteFideId "26093073"]
[BlackFideId "5018382"]
[WhiteElo "2129"]
[BlackElo "2210"]
[Result "0-1"]
[Round "09"]
[TimeControl "180+1"]
[Date "2022.02.08"]
[WhiteClock "0:00:04"]
[BlackClock "0:00:47"]

1. e4 {[%clk 0:03:00]}  e5 {[%clk 0:02:59]} 2. Nf3 {[%clk 0:03:01]}  Nc6 {[%clk 0:02:59]} 3. d4 {[%clk 0:02:59]}  exd4 {[%clk 0:02:56]} 4. Nxd4 {[%clk 0:02:59]}  Nf6 {[%clk 0:02:55]} 5. Nxc6 {[%clk 0:02:57]}  bxc6 {[%clk 0:02:56]} 6. e5 {[%clk 0:02:56]}  Qe7 {[%clk 0:02:53]} 7. Qe2 {[%clk 0:02:56]}  Nd5 {[%clk 0:02:53]} 8. h4 {[%clk 0:02:57]}  Nb6 {[%clk 0:02:49]} 9. Nc3 {[%clk 0:02:45]}  d5 {[%clk 0:02:39]} 10. exd6 {[%clk 0:02:42]}  Qxe2+ {[%clk 0:02:38]} 11. Bxe2 {[%clk 0:02:42]}  cxd6 {[%clk 0:02:38]} 12. a4 {[%clk 0:02:32]}  Bf5 {[%clk 0:02:37]} 13. a5 {[%clk 0:02:32]}  Nd7 {[%clk 0:02:36]} 14. Be3 {[%clk 0:02:08]}  Bxc2 {[%clk 0:02:31]} 15. Ba6 {[%clk 0:02:06]}  c5 {[%clk 0:02:17]} 16. Bb7 {[%clk 0:01:24]}  Rb8 {[%clk 0:02:15]} 17. a6 {[%clk 0:01:24]}  Be7 {[%clk 0:02:11]} 18. Nb5 {[%clk 0:01:24]}  O-O {[%clk 0:01:43]} 19. Nxa7 {[%clk 0:01:24]}  Ne5 {[%clk 0:01:43]} 20. O-O {[%clk 0:01:15]}  Bd3 {[%clk 0:01:36]} 21. Rfd1 {[%clk 0:01:09]}  Bxa6 {[%clk 0:01:31]} 22. Bxa6 {[%clk 0:01:07]}  Rxb2 {[%clk 0:01:31]} 23. Bf4 {[%clk 0:00:59]}  Bxh4 {[%clk 0:01:28]} 24. g3 {[%clk 0:00:55]}  Bf6 {[%clk 0:01:26]} 25. Kg2 {[%clk 0:00:45]}  Ng4 {[%clk 0:01:23]} 26. Kf3 {[%clk 0:00:21]}  h5 {[%clk 0:01:10]} 27. Be2 {[%clk 0:00:10]}  Bd4 {[%clk 0:01:05]} 28. Be3 {[%clk 0:00:07]}  Ne5+ {[%clk 0:01:00]} 29. Kg2 {[%clk 0:00:03]}  Rxe2 {[%clk 0:01:00]} 30. Bxd4 {[%clk 0:00:04]}  cxd4 {[%clk 0:00:57]} 31. Rxd4 {[%clk 0:00:05]}  Ng4 {[%clk 0:00:57]} 32. Rf4 {[%clk 0:00:04]}  Ra8 {[%clk 0:00:55]} 33. Raa4 {[%clk 0:00:04]}  g6 {[%clk 0:00:53]} 34. Kf3 {[%clk 0:00:01]}  Rxf2+ {[%clk 0:00:51]} 35. Ke4 {[%clk 0:00:02]}  Rxf4+ {[%clk 0:00:51]} 36. gxf4 {[%clk 0:00:02]}  Kg7 {[%clk 0:00:50]} 37. Kd5 {[%clk 0:00:02]}  h4 {[%clk 0:00:50]} 38. Kxd6 {[%clk 0:00:02]}  h3 {[%clk 0:00:50]} 39. Ke7 {[%clk 0:00:01]}  h2 {[%clk 0:00:49]} 40. Ra1 {[%clk 0:00:02]}  Rxa7+ {[%clk 0:00:49]} 41. Rxa7 {[%clk 0:00:03]}  h1=Q {[%clk 0:00:48]} 42. Ke8 {[%clk 0:00:03]}  Qe4+ {[%clk 0:00:47]} 43. Re7 {[%clk 0:00:04]}  Nf6+ {[%clk 0:00:47]} 0-1


[Site "https://www.chess.com"]